bitfinex/quotes_ETHUSD_20250724
["timestamp","ask_amount","ask_price","bid_price","bid_amount"]
[1753377431557,2.69803582,3706.4,3706.3,0.7958]
[1753377431758,0.4487,3707.1,3705.8,0.55]
[1753377431759,2.69796393,3706.5,3705.8,0.55]
[1753377431933,0.4971,3706.5,3705.7,0.8073]
[1753377432136,0.97273474,3706.4,3705.7,0.8073]
[1753377432364,2.69838918,3706.0,3705.7,0.8073]
[1753377432771,2.69810862,3706.3,3705.4,4.478]
[1753377432948,2.69837517,3706.0,3705.5,0.55]
[1753377433349,2.6983825,3706.0,3705.5,0.55]
[1753377433553,0.2503366,3706.3,3705.5,0.58353]
[1753377433874,0.4487,3706.5,3705.5,0.02698691]
[1753377434179,0.50066376,3706.4,3705.5,0.57698691]
[1753377434394,2.69824603,3706.2,3705.5,3.27567634]
[1753377434672,0.25033827,3706.1,3705.9,0.55]
[1753377434975,0.25032549,3706.5,3705.6,0.7734]
[1753377435141,2.69837564,3706.0,3705.6,0.7734]
[1753377435337,0.25075615,3705.9,3705.6,0.7734]
[1753377435679,0.25075615,3705.9,3705.1,0.4838]
[1753377435680,2.69884289,3705.3,3705.1,0.7734]
[1753377436034,0.9309,3705.9,3705.1,0.7734]
[1753377436235,2.69890964,3705.2,3705.1,0.7734]
[1753377436539,2.69890964,3705.2,3704.1,0.7822]
[1753377436540,0.4402,3705.2,3704.1,0.7822]
[1753377436759,2.69925146,3704.8,3704.1,5.2492]
[1753377436958,0.9309,3705.3,3704.2,0.79759661]
[1753377437168,2.69925978,3704.8,3704.2,0.79759661]
[1753377437372,3.27693066,3705.7,3704.2,0.79759661]
[1753377437373,0.7824,3705.8,3704.3,0.57699565]
[1753377437576,2.6987382,3705.5,3704.8,2.69913355]
[1753377437803,2.6987382,3705.5,3704.6,2.69930815]
[1753377437804,0.4907,3706.0,3704.6,0.02699346]
[1753377438096,0.5018634,3705.9,3705.2,0.55]
[1753377438300,2.69863189,3705.6,3705.2,0.55]
[1753377438499,0.5018634,3705.5,3705.1,0.55]
[1753377438800,0.2509317,3705.8,3705.7,0.1352]
[1753377439022,0.2509317,3706.0,3705.3,0.55]
[1753377439023,2.69854788,3705.7,3705.4,0.02698763]
[1753377439298,2.69854788,3705.7,3705.3,0.55]
[1753377439299,2.69847266,3705.8,3705.7,0.1352]
[1753377439498,2.94961624,3705.8,3705.7,0.1352]
[1753377439908,0.25114358,3705.8,3705.7,0.1352]
[1753377441089,1.21099819,3706.8,3705.7,0.6242]
[1753377441289,2.69830025,3706.1,3705.8,0.55]
[1753377441509,2.69830025,3706.1,3705.7,0.489]
[1753377441510,0.25147371,3706.0,3705.7,0.489]
[1753377441810,0.25147371,3705.9,3705.5,2.72561438]
[1753377442025,2.69820572,3706.2,3706.0,0.55]
[1753377442322,2.94969602,3706.1,3706.0,0.55]
[1753377442541,2.94969602,3706.1,3706.0,1.2724]
[1753377442542,0.2514418,3706.1,3706.0,1.2724]
[1753377442678,0.25142962,3706.6,3706.1,0.55]
[1753377442892,0.25144581,3706.8,3706.3,3.24808401]
[1753377443113,0.50287355,3706.7,3706.1,0.55]
[1753377443315,0.25142774,3706.6,3706.5,0.1352]
[1753377443690,2.94925471,3706.7,3706.5,0.1352]
[1753377443890,2.69789024,3706.6,3706.5,0.1352]
[1753377444623,2.94915695,3706.8,3706.5,0.1352]
[1753377444921,1.10033056,3707.0,3706.6,0.0269789]
[1753377444922,0.25140606,3706.7,3706.6,0.0269789]
[1753377445227,0.25140606,3706.9,3706.7,0.1352]
[1753377445425,0.25140606,3706.9,3706.5,0.55]
[1753377445625,2.6976719,3706.9,3706.8,0.1352]
[1753377445817,2.94904081,3706.9,3706.8,0.1352]
[1753377446123,2.69774468,3706.8,3706.1,0.55]
[1753377446306,1.20920365,3706.9,3706.1,0.55]
[1753377446307,2.69798014,3706.5,3706.1,0.55]
[1753377446705,0.9309,3706.9,3706.4,0.1352]
[1753377446924,2.69796303,3706.5,3706.4,0.1352]
[1753377447234,2.69818142,3706.2,3706.1,0.55]
[1753377447532,2.69805191,3706.4,3706.1,0.55]
[1753377447897,2.698122,3706.3,3706.1,0.55]
[1753377448122,2.69818142,3706.2,3706.1,0.55]
[1753377448324,0.4907,3706.8,3706.1,0.55]
[1753377448531,2.69791371,3706.6,3706.2,0.02698181]
[1753377448726,2.697716,3706.9,3706.3,0.55]
[1753377449032,2.69758082,3707.1,3706.5,0.55]
[1753377449527,2.69758082,3707.1,3706.5,3.24796171]
[1753377449731,0.25203246,3707.2,3706.7,0.55]
[1753377449931,3.4402,3707.5,3706.7,0.55]
[1753377450101,2.69759226,3707.1,3706.9,0.55]
[1753377450675,3.0,3707.5,3706.9,0.55]
[1753377450961,0.002,3707.6,3707.5,0.55]
[1753377451159,0.002,3707.6,3707.5,1.88797235]
[1753377451465,0.002,3707.6,3707.5,5.71410553]
[1753377452359,0.002,3707.6,3707.5,1.3543]
[1753377453370,0.002,3707.6,3707.5,4.56750768]
[1753377454228,0.002,3707.6,3707.5,5.82827235]
[1753377454432,0.002,3707.6,3707.5,5.8013]
[1753377455166,0.002,3707.6,3707.5,8.98753533]
[1753377455369,0.002,3707.6,3707.5,10.15602101]
[1753377456241,0.002,3707.6,3707.5,7.45878568]
[1753377456831,0.002,3707.6,3707.5,10.15602101]
[1753377457061,0.002,3707.6,3707.5,13.15602101]
[1753377457263,0.002,3707.6,3707.5,13.30892101]
[1753377457467,0.002,3707.6,3707.5,10.59398568]
[1753377457663,0.002,3707.6,3707.5,13.29122101]
[1753377458268,0.002,3707.6,3707.5,1.4895]
[1753377458475,0.002,3707.6,3707.5,5.9265]
[1753377458686,0.002,3707.6,3707.5,8.62373533]
[1753377459331,0.002,3707.6,3707.5,9.11273533]
[1753377459764,0.002,3707.6,3707.5,8.62373533]
[1753377459980,0.002,3707.6,3707.5,9.75584083]
[1753377460553,0.002,3707.6,3707.5,10.24484083]
[1753377463091,0.002,3707.6,3707.5,13.24484083]
[1753377463295,0.002,3707.6,3707.5,13.26254083]
[1753377463444,0.002,3708.0,3707.9,4.01354436]
[1753377463642,0.002,3708.0,3707.9,12.70728753]
[1753377463891,1e-08,3708.0,3707.9,13.18701809]
[1753377464208,1e-08,3708.0,3707.9,35.86338709]
[1753377464738,0.002,3709.1,3709.0,6.69624451]
[1753377464996,0.002,3709.1,3709.0,11.12724451]
[1753377465294,0.002,3709.1,3709.0,12.50959201]
[1753377465658,0.002,3709.1,3709.0,1.9323475]
[1753377465856,0.4486,3709.1,3709.0,4.98]
[1753377466055,0.9093,3709.1,3709.0,4.98]
[1753377466689,0.002,3709.1,3709.0,7.67614451]
[1753377466847,0.002,3709.1,3709.0,8.15194451]
[1753377467041,0.002,3709.1,3709.0,6.33444052]
[1753377467347,0.002,3709.1,3709.0,9.03058503]
[1753377469869,0.002,3709.1,3709.0,6.33444052]
[1753377470176,0.002,3709.1,3709.0,9.03058503]
[1753377470747,0.002,3709.1,3709.0,13.32428503]
[1753377473460,0.002,3709.1,3709.0,13.45948503]
[1753377473673,0.002,3709.1,3709.0,13.47718503]
[1753377474591,0.002,3709.1,3709.0,12.98368503]
[1753377474792,0.002,3709.1,3709.0,4.5432]
[1753377474951,0.002,3709.1,3709.0,5.0922]
[1753377475589,0.002,3709.1,3709.0,7.81530595]
[1753377475795,0.002,3709.1,3709.0,12.05384451]
[1753377476597,0.002,3709.1,3709.0,12.03614451]
[1753377476761,0.002,3709.1,3709.0,14.20495292]
[1753377478272,0.002,3709.7,3709.0,14.20495292]
[1753377478273,0.002,3709.7,3709.6,2.69570843]
[1753377478470,0.002,3709.7,3709.6,18.43352034]
[1753377478697,0.002,3709.7,3709.6,7.68700843]
[1753377478871,0.002,3709.7,3709.6,12.64948846]
[1753377480168,0.002,3709.7,3709.6,13.12528846]
[1753377480362,0.002,3709.7,3709.6,13.14298846]
[1753377480788,0.002,3709.7,3709.6,2.41938003]
[1753377480989,0.9093,3709.7,3709.6,4.398]
[1753377481264,0.002,3709.7,3709.6,7.09370843]
[1753377481768,0.002,3709.7,3709.6,11.93890843]
[1753377482371,1e-08,3709.7,3709.6,11.95660843]
[1753377482571,1e-08,3709.7,3709.6,14.38699914]
[1753377483483,1e-08,3709.9,3709.8,16.3896281]
[1753377483683,1e-08,3709.9,3709.8,23.7846281]
[1753377483897,1e-08,3710.5,3710.4,7.01632721]
[1753377484195,1e-08,3710.5,3710.4,27.04806812]
[1753377484375,1e-08,3710.5,3710.4,27.15306088]
[1753377484576,1e-08,3710.6,3710.5,6.24505457]
[1753377484889,1e-08,3710.6,3710.5,20.66281557]
[1753377485916,1e-08,3710.6,3710.5,12.41722857]
[1753377487605,1e-08,3710.6,3710.5,7.50975457]
[1753377487809,1e-08,3710.6,3710.5,10.20464436]
[1753377490195,1e-08,3710.6,3710.5,12.71158036]
[1753377490398,1e-08,3710.6,3710.5,10.20464436]
[1753377490714,1e-08,3710.6,3710.5,6.29554436]
[1753377490923,1e-08,3710.6,3710.5,7.21045457]
[1753377491220,0.90730001,3710.6,3710.5,0.1344]
[1753377491405,0.90730001,3710.6,3710.5,4.5154]
[1753377491722,1e-08,3710.6,3710.5,7.76045457]
[1753377491929,1e-08,3710.6,3710.5,11.80871511]
[1753377492485,1e-08,3710.6,3710.5,11.25871511]
[1753377492843,1e-08,3710.6,3710.5,19.99142702]
[1753377493134,1e-08,3710.6,3710.5,30.13991702]
[1753377493338,0.002,3711.4,3711.3,3.24447363]
[1753377493485,0.002,3711.4,3711.3,18.6736329]
[1753377493682,0.002,3711.4,3711.3,18.8080329]
[1753377494186,0.002,3711.4,3711.3,11.85232099]
[1753377494402,0.9093,3711.4,3711.3,10.75687363]
[1753377494605,0.9093,3711.4,3711.3,10.75587363]
[1753377494813,0.9093,3711.4,3711.3,8.0614]
[1753377495015,0.9093,3711.4,3711.3,5.0614]
[1753377495225,0.4486,3711.4,3711.3,7.75587363]
[1753377495453,0.002,3711.4,3711.3,8.80361702]
[1753377495596,0.4309,3711.4,3711.3,9.10914339]
[1753377495933,1.705,3711.4,3711.3,5.0614]
[1753377497131,4.39940103,3711.4,3711.3,4.5114]
[1753377497332,4.39940103,3711.4,3711.3,4.5084]
[1753377497533,4.39940103,3711.4,3711.3,0.1344]
[1753377497833,2.69488547,3710.8,3710.1,2.69529863]
[1753377498042,0.91,3710.7,3710.2,4.91477394]
[1753377498412,3.48811728,3710.5,3710.2,4.373]
[1753377498617,0.793,3710.5,3710.3,4.373]
[1753377498837,0.91,3710.4,3709.6,9.44339071]
[1753377499151,3.48805457,3710.5,3710.4,0.1344]
[1753377499338,3.48805457,3710.5,3710.4,4.372]
[1753377499542,4.39805457,3710.5,3710.4,4.372]
[1753377500443,2.69519984,3710.3,3710.2,4.368]
[1753377500662,3.50179984,3710.3,3710.2,4.368]
[1753377500859,4.41179984,3710.3,3710.2,4.368]
[1753377501065,4.41179984,3710.3,3709.2,5.69599022]
[1753377501066,0.8284,3710.1,3710.0,4.367]
[1753377501213,2.69549044,3709.9,3709.8,0.1344]
[1753377501413,2.69549044,3709.9,3709.7,4.367]
[1753377501642,2.69542621,3710.0,3709.6,4.5014]
[1753377501863,0.9628,3710.1,3709.6,4.5014]
[1753377501864,0.91,3709.8,3709.6,4.5014]
[1753377502162,0.9628,3710.1,3709.6,4.5014]
[1753377502163,3.52375337,3710.1,3709.9,0.1344]
[1753377502312,0.8284,3710.1,3709.7,0.02695635]
[1753377502509,3.52380809,3710.1,3709.9,0.1344]
[1753377502714,0.91,3710.0,3709.9,4.5004]
[1753377502917,3.60541778,3710.0,3709.9,4.5004]
[1753377503133,2.69541778,3710.0,3709.9,4.5004]
[1753377503347,2.69541778,3710.0,3709.9,4.366]
[1753377503348,3.60541778,3710.0,3709.9,4.366]
[1753377504652,3.63235252,3710.0,3709.9,4.366]
[1753377504857,3.60541778,3710.0,3709.9,4.367]
[1753377505231,3.60541778,3710.0,3709.9,0.001]
[1753377505432,4.40061778,3710.0,3709.9,0.001]
[1753377505637,4.42755252,3710.0,3709.9,0.001]
[1753377506838,4.40061778,3710.0,3709.9,0.001]
[1753377507942,1.7052,3710.0,3709.9,0.001]
[1753377508144,1.7052,3710.0,3709.9,0.1354]
[1753377508776,4.40061778,3710.0,3709.9,0.1354]
[1753377509143,1.7052,3710.0,3709.9,0.1354]
[1753377509927,4.40061778,3710.0,3709.9,0.1354]
[1753377510229,4.53501778,3710.0,3709.9,0.001]
[1753377510874,1.7052,3710.0,3709.9,0.1354]
[1753377511030,4.40061778,3710.0,3709.9,0.1354]
[1753377512276,1.7052,3710.0,3709.9,0.1354]
[1753377512475,4.40061778,3710.0,3709.9,0.1354]
[1753377513451,1.7052,3710.0,3709.9,0.1354]
[1753377514777,4.40061778,3710.0,3709.9,0.1354]
[1753377514979,1.7052,3710.0,3709.9,0.1354]
[1753377516189,0.7627,3710.9,3710.6,2.6949536]
[1753377516399,0.4289,3711.2,3710.6,0.53900734]
[1753377516600,0.91,3711.2,3710.7,0.02694909]
[1753377516737,0.7627,3711.3,3711.0,0.1344]
[1753377516937,0.91,3711.1,3711.0,0.1344]
[1753377517355,3.0,3710.8,3709.9,0.001]
[1753377517534,3.58651778,3710.0,3709.9,0.001]
[1753377517851,3.45211778,3710.0,3709.9,0.001]
[1753377518047,4.36211778,3710.0,3709.9,0.001]
[1753377520686,0.1344,3710.3,3709.9,0.001]
[1753377520848,0.4811,3710.4,3710.1,0.1344]
[1753377521054,1.1856,3710.5,3710.3,0.1344]
[1753377521476,1.6667,3710.5,3710.3,0.1344]
[1753377521695,1.8416,3710.9,3710.4,0.55]
[1753377521979,0.002,3711.4,3710.4,0.55]
[1753377521980,2.69464087,3711.1,3710.4,2.69511792]
[1753377522167,3.49361716,3711.4,3710.5,0.55]
[1753377522168,0.91,3710.8,3710.5,0.55]
[1753377522377,2.69453066,3711.3,3710.7,0.55]
[1753377522546,2.69461884,3711.1,3710.7,0.6844]
[1753377522883,2.69461884,3711.1,3710.7,0.55]
[1753377523180,2.69461884,3711.1,3711.0,0.1344]
[1753377523347,2.69447722,3711.3,3710.1,0.8171]
[1753377523348,2.69490931,3710.7,3710.1,0.8171]
[1753377523548,0.02693474,3711.2,3710.0,0.55]
[1753377523549,2.69522441,3710.3,3710.0,0.55]
[1753377523874,0.91,3710.2,3710.0,0.55]
[1753377524070,3.6052793,3710.2,3709.9,4.357]
[1753377524403,0.8048,3710.5,3710.1,0.1344]
[1753377524550,2.69497397,3710.7,3710.2,0.02695272]
[1753377524885,3.60499801,3710.6,3710.4,0.1344]
[1753377525071,2.69505457,3710.5,3710.4,0.1344]
[1753377525268,3.60505457,3710.5,3710.4,0.1344]
[1753377526212,0.91,3710.5,3710.4,0.1344]
[1753377527308,0.002,3710.6,3710.5,0.55]
[1753377527907,0.002,3710.6,3710.5,4.906]
[1753377529203,0.002,3710.6,3710.5,11.93976254]
[1753377529386,0.002,3710.6,3710.5,12.85336254]
[1753377529604,0.002,3710.6,3710.5,26.82107445]
[1753377530114,0.002,3711.4,3711.3,4.00597363]
[1753377530320,0.002,3711.4,3711.3,0.6844]
[1753377530489,3.62120103,3711.4,3711.3,0.1344]
[1753377533529,3.62120103,3711.4,3711.2,4.356]
[1753377533730,2.69461884,3711.1,3710.7,0.1344]
[1753377534024,0.7944,3711.0,3709.3,0.8207]
[1753377534230,2.69532994,3710.2,3710.1,4.355]
[1753377534392,2.69532994,3710.2,3709.3,0.8207]
[1753377534393,2.69541778,3710.0,3709.3,0.8207]
[1753377534587,0.8326,3710.1,3710.0,0.1344]
[1753377534588,4.45274513,3710.1,3710.0,0.1344]
[1753377534804,2.69541778,3710.0,3709.9,0.1354]
[1753377535128,3.62021778,3710.0,3709.9,0.1354]
[1753377535303,0.9248,3710.0,3709.9,0.1354]
[1753377535516,2.69529484,3710.2,3709.9,0.1354]
[1753377536040,2.69534525,3710.1,3709.9,0.1354]
[1753377536347,3.62014525,3710.1,3709.9,0.1354]
[1753377536508,0.9248,3710.1,3709.9,0.1354]
[1753377536710,2.69528401,3710.2,3709.9,0.1354]
[1753377537022,0.9248,3710.0,3709.9,0.1354]
[1753377537344,3.62021778,3710.0,3709.9,0.1354]
[1753377538436,0.9248,3710.0,3709.9,0.1354]
[1753377539864,3.62021778,3710.0,3709.9,0.1354]
[1753377540011,3.14611778,3710.0,3709.9,0.1354]
[1753377540206,3.14611778,3710.0,3709.9,0.001]
[1753377540207,3.62021778,3710.0,3709.9,0.001]
[1753377540621,4.40911778,3710.0,3709.9,0.001]
[1753377540843,4.43605252,3710.0,3709.9,0.001]
[1753377541057,4.57045252,3710.0,3709.9,0.001]
[1753377541540,4.54351778,3710.0,3709.9,0.001]
[1753377541741,7.54351778,3710.0,3709.9,0.001]
[1753377541944,0.7615,3711.1,3709.9,7.05141982]
[1753377542143,0.9248,3711.0,3710.0,2.05339615]
[1753377542456,0.95173474,3710.9,3710.1,4.355]
[1753377542636,2.69495577,3710.7,3710.1,4.355]
[1753377542956,2.69490931,3710.7,3710.2,0.55]
[1753377543154,2.69518097,3710.4,3710.1,4.355]
[1753377543359,2.69508096,3710.5,3710.1,4.355]
[1753377543571,3.61980446,3710.6,3710.1,4.355]
[1753377543858,0.9248,3710.6,3710.1,4.355]
[1753377544159,0.7615,3711.1,3710.2,0.55]
[1753377544359,0.002,3711.4,3711.0,2.69464034]
[1753377544523,0.002,3711.4,3711.1,4.354]
[1753377544853,0.002,3711.4,3711.3,3.24447363]
[1753377545644,0.002,3711.4,3710.8,0.7651]
[1753377545959,0.002,3711.4,3711.2,0.55]
[1753377546158,0.002,3711.4,3711.1,2.69461884]
[1753377546159,0.002,3711.4,3711.1,3.2446013]
[1753377546344,0.002,3711.4,3711.3,2.69447363]
[1753377546671,0.002,3711.4,3711.3,0.55]
[1753377547355,0.002,3711.4,3711.3,3.24447363]
[1753377547540,0.002,3711.4,3711.3,7.59847363]
[1753377547927,0.002,3711.4,3711.3,4.904]
[1753377548119,0.002,3711.4,3711.3,5.55858263]
[1753377548626,0.002,3711.4,3711.3,8.25305626]
[1753377548825,0.002,3711.4,3711.3,8.73785626]
[1753377549060,0.002,3711.4,3711.3,12.67735626]
[1753377549280,0.002,3711.4,3711.3,5.47678263]
[1753377549424,0.002,3711.4,3711.3,12.04045626]
[1753377549861,0.002,3711.4,3711.3,12.52525626]
[1753377550242,0.002,3711.4,3711.3,12.04045626]
[1753377550769,0.002,3711.4,3711.3,12.52525626]
[1753377552167,0.002,3711.4,3711.3,12.65965626]
[1753377552369,0.002,3711.4,3711.3,12.17485626]
[1753377552575,0.002,3712.2,3712.1,6.24389294]
[1753377552889,0.002,3712.2,3712.1,12.32138028]
[1753377553188,0.002,3712.2,3712.1,13.09268028]
[1753377553772,0.002,3712.2,3712.1,20.04839219]
[1753377558840,0.002,3712.2,3712.1,20.04349219]
[1753377559037,1e-08,3712.2,3712.1,31.51651619]
[1753377559387,0.002,3713.0,3712.9,3.2433125]
[1753377559590,0.002,3713.0,3712.9,27.08290869]
[1753377559776,0.4994,3714.5,3713.3,0.55]
[1753377559981,3.19155261,3714.5,3714.0,0.55]
[1753377560156,3.66572485,3714.4,3714.2,0.55]
[1753377560357,0.4741,3714.4,3714.3,4.9]
[1753377560659,0.4741,3714.4,3714.3,5.0344]
[1753377560660,3.16632485,3714.4,3714.3,5.0344]
[1753377560870,3.66572485,3714.4,3714.3,5.0344]
[1753377561081,0.9735,3714.4,3714.3,5.0344]
[1753377561280,3.66572485,3714.4,3714.3,4.4844]
[1753377561455,3.66572485,3714.4,3714.3,0.1344]
[1753377561656,2.69280273,3713.7,3713.5,0.55]
[1753377561866,0.9735,3713.6,3713.5,0.55]
[1753377562092,0.4994,3713.9,3713.5,4.9]
[1753377562267,0.4741,3713.9,3713.5,5.0344]
[1753377562470,2.69273231,3713.7,3713.6,4.35]
[1753377562669,2.69305927,3713.3,3712.9,7.008]
[1753377562886,0.9735,3713.2,3712.9,8.79015337]
[1753377563083,2.69323996,3713.0,3712.9,7.008]
[1753377563284,3.66673996,3713.0,3712.9,7.008]
[1753377563468,3.66673996,3713.0,3712.9,0.1344]
[1753377563791,3.66673996,3713.0,3712.9,4.4834]
[1753377564291,2.69318152,3713.1,3712.9,4.4834]
[1753377564593,0.8892,3713.6,3712.9,4.4834]
[1753377564756,0.4994,3713.0,3712.9,4.349]
[1753377564957,3.19263996,3713.0,3712.9,4.349]
[1753377565189,3.66673996,3713.0,3712.9,4.4834]
[1753377567293,0.9735,3713.0,3712.9,4.4834]
[1753377568194,3.66673996,3713.0,3712.9,4.4834]
[1753377568359,0.9735,3713.0,3712.9,4.4834]
[1753377568559,3.19244757,3713.3,3712.9,4.4834]
[1753377568903,3.66654413,3713.3,3713.0,0.55]
[1753377569062,2.69290157,3713.5,3713.2,0.1344]
[1753377569262,3.66645293,3713.4,3713.3,4.348]
[1753377569559,0.9735,3713.4,3713.3,4.348]
[1753377569760,0.9735,3713.4,3713.3,4.4824]
[1753377570168,0.7548,3713.6,3713.3,4.4824]
[1753377570468,0.7548,3713.6,3713.3,4.348]
[1753377570469,0.9735,3713.4,3713.3,4.348]
[1753377570880,0.9735,3713.4,3713.3,4.4824]
[1753377571608,3.66644985,3713.4,3713.3,4.4824]
[1753377574002,0.9735,3713.4,3713.3,4.4824]
[1753377574376,3.66644985,3713.4,3713.3,4.4824]
[1753377575404,3.66644985,3713.4,3713.3,4.348]
[1753377575764,0.9735,3713.4,3712.4,4.3]
[1753377575977,2.69370119,3712.4,3711.6,11.307]
[1753377576205,2.69370119,3712.4,3712.3,0.1344]
[1753377576206,3.16780119,3712.4,3712.3,0.1344]
[1753377576404,3.16780119,3712.4,3712.3,4.4814]
[1753377576779,4.44750119,3712.4,3712.3,4.347]
[1753377576980,1.7538,3712.4,3712.1,4.347]
[1753377577180,0.9735,3712.3,3712.1,4.4814]
[1753377577391,0.7803,3712.4,3712.1,4.4814]
[1753377577701,3.66732037,3712.2,3712.1,4.4814]
[1753377578539,0.7803,3712.4,3712.1,7.17522945]
[1753377578709,0.9735,3712.7,3712.2,0.55]
[1753377579023,0.9735,3712.7,3712.1,4.79514]
[1753377579024,3.4757782,3712.2,3712.1,0.1344]
[1753377579220,0.7819,3712.2,3712.1,4.4804]
[1753377579506,1.7554,3712.2,3712.1,4.4804]
[1753377579736,0.9735,3712.2,3712.1,4.4804]
[1753377580004,3.1929342,3712.6,3712.2,0.55]
[1753377580205,2.69359353,3712.6,3712.1,4.346]
[1753377580408,2.69370059,3712.4,3712.3,0.1344]
[1753377580653,2.69379901,3712.3,3711.7,3.24416849]
[1753377580776,2.69379901,3712.3,3712.2,0.1344]
[1753377581106,3.51209901,3712.3,3712.2,4.346]
[1753377581514,4.48559901,3712.3,3712.2,4.346]
[1753377583835,1.7918,3712.3,3712.2,4.346]
[1753377584031,0.4994,3712.3,3712.2,4.346]
[1753377584178,0.9735,3712.3,3712.2,4.4804]
[1753377584381,1.269,3712.7,3712.2,5.74783594]
[1753377584625,0.9735,3712.7,3712.3,2.69374781]
[1753377584778,0.9735,3712.7,3712.4,2.69366725]
[1753377585123,0.9735,3712.7,3712.3,0.02693747]
[1753377585124,0.9735,3712.7,3712.6,0.1344]
[1753377585664,2.69353014,3712.6,3712.5,4.346]
[1753377585979,3.63223014,3712.6,3712.5,4.346]
[1753377586428,0.9387,3712.6,3712.5,4.346]
[1753377587226,3.63223014,3712.6,3712.5,4.346]
[1753377587620,2.69346395,3712.7,3712.5,4.346]
[1753377587827,2.69346395,3712.7,3712.5,4.4804]
[1753377587981,3.63216395,3712.7,3712.5,4.4804]
[1753377588316,0.9387,3712.7,3712.5,4.4804]
[1753377591315,0.4401,3712.7,3712.5,4.4804]
[1753377591477,0.4986,3712.9,3712.5,4.4804]
[1753377591680,0.9387,3712.9,3712.5,4.4804]
[1753377591883,0.002,3713.0,3712.6,0.55]
[1753377592181,0.002,3713.0,3712.8,0.1344]
[1753377592524,0.002,3713.0,3712.9,7.5873125]
[1753377592732,0.002,3713.0,3712.9,8.0502125]
[1753377593022,0.002,3713.0,3712.9,11.8377125]
[1753377594530,0.002,3713.0,3712.9,11.3748125]
[1753377595302,0.002,3713.0,3712.9,1.3375]
[1753377595509,0.002,3713.0,3712.9,4.0308125]
[1753377595776,0.002,3713.0,3712.9,8.3738125]
[1753377596224,0.002,3713.0,3712.9,9.9568782]
[1753377597528,0.002,3713.0,3712.9,9.4939782]
[1753377598754,0.002,3713.0,3712.9,9.9568782]
[1753377599362,0.002,3713.0,3712.9,12.9568782]
[1753377599878,0.002,3713.0,3712.9,6.0111657]
[1753377600025,0.9407,3713.0,3712.9,4.891]
[1753377600221,2.6933125,3712.9,3712.8,0.1344]
[1753377600523,2.6933125,3712.9,3712.5,0.001]
[1753377600524,2.69353014,3712.6,3712.5,0.001]
[1753377600848,2.720415,3712.7,3712.5,0.001]
[1753377601047,0.9387,3712.6,3712.5,0.001]
[1753377601346,0.7778,3712.8,3712.5,0.1354]
[1753377601548,0.7778,3712.8,3712.6,4.341]
[1753377601732,0.002,3713.0,3712.7,3.73326661]
[1753377601921,0.002,3713.0,3712.7,1.1473]
[1753377602120,0.002,3713.0,3712.6,4.341]
[1753377602121,0.002,3713.0,3712.9,3.3777125]
[1753377602335,0.002,3713.0,3712.9,5.0244]
[1753377602521,0.002,3713.0,3712.9,7.7177125]
[1753377602736,0.002,3713.0,3712.9,8.48948375]
[1753377602919,0.002,3713.0,3712.9,8.95238375]
[1753377603124,0.002,3713.0,3712.9,8.48948375]
[1753377604057,0.002,3713.0,3712.9,11.48948375]
[1753377604259,0.002,3713.0,3712.9,11.95238375]
[1753377604762,0.002,3713.0,3712.9,11.48948375]
[1753377605858,0.002,3713.0,3712.9,4.4734]
[1753377605859,0.9407,3713.0,3712.9,4.4734]
[1753377607343,3.63393996,3713.0,3712.9,4.4734]
[1753377607857,0.9407,3713.0,3712.9,4.4734]
[1753377608078,0.002,3713.0,3712.9,4.4734]
[1753377608229,0.002,3713.0,3712.9,8.20654562]
[1753377608431,0.002,3713.0,3712.9,8.80670681]
[1753377608665,0.002,3713.0,3712.9,6.11339431]
[1753377609648,0.002,3713.0,3712.9,8.80670681]
[1753377609837,0.002,3713.0,3712.9,6.11339431]
[1753377612854,0.002,3713.0,3712.9,8.80670681]
[1753377613082,0.002,3713.0,3712.9,6.11339431]
[1753377613775,0.002,3713.0,3712.9,8.80670681]
[1753377615044,0.002,3713.0,3712.9,6.11339431]
[1753377615856,0.002,3713.0,3712.9,8.80670681]
[1753377616746,0.002,3713.0,3712.9,6.11339431]
[1753377617072,0.002,3713.0,3712.9,8.80670681]
[1753377617837,0.002,3713.0,3712.9,13.06380681]
[1753377618078,0.002,3713.0,3712.9,9.91939431]
[1753377618296,0.002,3713.0,3712.9,11.80670681]
[1753377618486,0.8889,3713.0,3712.9,4.4734]
[1753377618781,2.69332556,3712.9,3712.5,0.001]
[1753377618944,2.69343476,3712.8,3712.6,4.335]
[1753377619148,0.002,3713.0,3712.6,4.335]
[1753377619341,3.58025787,3712.9,3712.7,0.1344]
[1753377619598,2.69335787,3712.9,3712.8,4.335]
[1753377620071,3.58025787,3712.9,3712.8,4.335]
[1753377621674,1.7974,3712.9,3712.5,4.335]
[1753377621868,0.1344,3712.7,3712.5,4.335]
[1753377622073,0.8869,3712.6,3712.5,4.335]
[1753377622382,2.82788021,3712.7,3712.5,4.335]
[1753377622383,0.1344,3712.7,3712.5,4.335]
[1753377622582,0.8869,3712.6,3712.5,4.4694]
[1753377623710,1.2351,3712.9,3712.5,4.4694]
[1753377623908,0.002,3713.0,3712.6,0.55]
[1753377624111,0.002,3713.0,3712.8,2.82771956]
[1753377624314,0.002,3713.0,3712.9,4.334]
[1753377624511,0.002,3713.0,3712.9,7.0273125]
[1753377624809,0.002,3713.0,3712.9,7.5773125]
[1753377625172,0.461,3713.0,3712.9,7.5773125]
[1753377625573,0.002,3713.0,3712.9,8.18408615]
[1753377625775,0.002,3713.0,3712.9,8.63518615]
[1753377626212,0.002,3713.0,3712.9,9.46368615]